Cogmind - Beta 16 @@@ ROGUE MODE // 2025.12.08 @ 19:19:17 Player: lepire Result: Destroyed by RX-1E5(R) with Subdweller Shrapnel Launcher Performance ------------- Evolutions (0) 0 Regions Visited (3) 600 Robots Destroyed (18) 90 Value Destroyed (617) 617 Prototype IDs (0) 0 Alien Tech Used (0) 0 Bonus (0) 0 TOTAL SCORE: 1307 Bonus ------- None Cogmind --------- Core Integrity 0/250 Matter 269/300 Energy 100/100 System Corruption 2% Temperature Cool (0) Movement Rolling (110) Location -10/Subcaves Parts ------- > --- POWER (1) -------- (None) > --- PROPULSION (2) --- Subdweller Monowheel > --- UTILITY (2) ------ Core Shielding (fused) Light Armor Plating > --- WEAPON (2) ------- Assault Rifle Barrage Gun > --- INVENTORY (5) ---- Subdweller Power Source Subdweller Monowheel Makeshift Light Armor Plating Mining Laser Peak State ------------ > --- POWER ------------ (None) > --- PROPULSION ------- Subdweller Monowheel > --- UTILITY ---------- Core Shielding Light Armor Plating > --- WEAPON ----------- Barrage Gun Battle Cannon > --- INVENTORY -------- Subdweller Power Source Subdweller Monowheel Makeshift Light Armor Plating Assault Rifle Mining Laser [Rating: 10] Favorites ----------- Power Ion Engine Engine Ion Engine Propulsion Light Treads Treads Light Treads Leg Aluminum Leg Wheel Compact Wheel Utility Light Armor Plating Storage Huge Storage Unit Protection Light Armor Plating Weapon Assault Rifle Energy Gun EM Pulse Gun Ballistic Gun Assault Rifle Ballistic Cannon Battle Cannon Special Weapon Mining Laser Build | -11 -10 -10 -10 ------- Run | Yrd Mat Min Sub Slots Evolved . | . . . . Power . | . . . . Propulsion . | . . . . Utility . | . . . . Weapon . | . . . . Parts Attached 22 | 2 8 3 9 Power 2 | . 1 . 1 Engine 2 | . 1 . 1 Core . | . . . . Reactor . | . . . . Propulsion 4 | 2 . 1 1 Treads 2 | 1 . 1 . Leg . | . . . . Wheel 2 | 1 . . 1 Hover . | . . . . Flight . | . . . . Utility 8 | . 4 1 3 Device . | . . . . Storage 3 | . 3 . . Processor . | . . . . Hackware . | . . . . Protection 5 | . 1 1 3 Artifact . | . . . . Weapon 8 | . 3 1 4 Energy Gun 2 | . 2 . . Energy Cannon . | . . . . Ballistic Gun 4 | . 1 1 2 Ballistic Cannon 1 | . . . 1 Launcher . | . . . . Special Weapon 1 | . . . 1 Impact Weapon . | . . . . Slashing Weapon . | . . . . Piercing Weapon . | . . . . Special Melee Weapon . | . . . . Unidentified Prototypes . | . . . . Corrupted Parts 1 | . . 1 . System Corruption 2 | . . 2 . Parts Lost 10 | . . 3 7 Power 1 | . . . 1 Propulsion 3 | . . 1 2 Utility 2 | . . . 2 Weapon 4 | . . 2 2 Highest Loss Streak 5 | . . 3 5 To Critical Strikes 1 | . . . 1 Average Backups 8 | 6 5 11 6 Power . | 1 1 1 . Propulsion . | 4 . . . Utility 4 | . 1 7 2 Weapon 2 | 1 2 2 1 Tool/Special . | . . . . Unused Backups 15 | . 5 . 10 Power 2 | . 1 . 1 Propulsion 3 | . 2 . 1 Utility 9 | . 2 . 7 Weapon 1 | . . . 1 Tool/Special . | . . . . Average Slot Usage (%) 87 | . 93 94 76 Engine 9 | . 14 14 2 Treads 15 | . 14 25 6 Wheel 8 | . 14 2 10 Storage 8 | . 8 14 2 Protection 17 | . 13 14 25 Energy Gun 7 | . 23 3 . Ballistic Gun 15 | . 4 19 19 Ballistic Cannon 1 | . . . 4 Special Weapon 1 | . . . 3 Peak Build Rating 10 | 6 8 8 10 Average Rating 7 | 6 6 7 7 On Entrance 7 | 6 6 8 8 Avg Prop Armor Cover (%) 12 | . 12 12 . Naked Turns . | . . . . Heaviest Build 94 | 13 94 92 92 Greatest Support 40 | 16 16 40 40 Greatest Overweight (x) 5 | . 5 5 2 Average Overweight (x) 1 | . 2 2 . Largest Inventory Capacity 25 | 8 25 25 25 Average Capacity 16 | 8 14 25 8 Most Carried 13 | 6 8 13 13 Average Carried 8 | 4 5 11 6 Final Capacity 25 | 8 25 25 5 Final Carried 13 | 4 8 13 4 Class Distribution -------------------- 100% | Mutant Dominant Class ---------------- Mutant | -10/Materials Mutant | -10/Mines Mutant | -10/Subcaves Resources | -11 -10 -10 -10 ----------- Run | Yrd Mat Min Sub Matter Collected 643 | 179 127 54 283 Remotely . | . . . . Salvage Created 774 | . 397 112 265 Parts 44 | . 21 4 19 Haulers Intercepted 1 | . 1 . . Recyclers Shooed . | . . . . Parts Field Recycled . | . . . . Retrieved Matter . | . . . . Parts Self-Destructed 3 | . . . 3 Prevented . | . . . . Parts Restored . | . . . . Kills | -11 -10 -10 -10 ------- Run | Yrd Mat Min Sub Combat Hostiles Destroyed 14 | . 6 2 6 Guns 12 | . 4 2 6 AOE 1 | . 1 . . Classes Destroyed 6 | . 4 1 1 Hauler 1 | . 1 . . Operator 2 | . 2 . . Watcher 1 | . 1 . . Grunt 6 | . 6 . . Sentry 2 | . . 2 . Subdweller 6 | . . . 6 Best Kill Streak 3 | . 3 2 2 Combat Bots Only 2 | . 2 2 2 Max Kills in Single Turn 1 | . 1 1 1 Gunslinging . | . . . . Exploded 1 | . 1 . . Melee . | . . . . Uniques/NPCs Destroyed . | . . . . Combat | -11 -10 -10 -10 -------- Run | Yrd Mat Min Sub Hostile Shots Fired 100 | . 14 22 64 Missed 34 | . 10 6 18 Hits 66 | . 4 16 46 Projectile 66 | . 4 16 46 AOE 1 | . . . 1 Critical Strikes 3 | . . 2 1 Actively Blocked 1 | . . 1 . Damage Taken 1361 | . 114 230 1017 Core 274 | . 41 12 221 Absorbed by Shields . | . . . . Redirected to Shielding 46 | . 9 2 35 Core Remaining (%) 100 | 100 . . . Volleys Fired 67 | . 25 8 34 Largest 2 | . 2 2 2 Hottest 100 | . 80 80 100 Shots Fired 132 | . 50 15 67 Gun 126 | . 50 15 61 Cannon 4 | . . . 4 Launcher . | . . . . Special 2 | . . . 2 Kinetic 72 | . 2 5 65 Thermal 2 | . . . 2 Explosive . | . . . . Electromagnetic 58 | . 48 10 . Robot Hit Streak 15 | . 7 15 10 Robot Miss Streak 4 | . 4 . 3 Penetration Max . | . . . . Secondary Targets . | . . . . Shots Hit Robots 91 | . 31 13 47 Core Hits 32 | . 15 4 13 Critical Kills . | . . . . Critical Parts Destroyed . | . . . . Critical Strikes 1 | . 1 . . Corrupt 1 | . 1 . . Melee Attacks . | . . . . Impact . | . . . . Slashing . | . . . . Piercing . | . . . . Sneak Attacks . | . . . . Combat Hostiles . | . . . . Follow-up Attacks . | . . . . Damage Inflicted 1059 | . 466 153 440 Guns 984 | . 411 150 423 Cannons 17 | . . . 17 Explosions 55 | . 55 . . Melee . | . . . . Ramming 3 | . . 3 . Kinetic 490 | . 14 36 440 Thermal 55 | . 55 . . Explosive . | . . . . Electromagnetic 511 | . 397 114 . Impact . | . . . . Slashing . | . . . . Piercing . | . . . . Highest Corruption 2 | . . 2 2 Average Corruption 2 | . . 2 2 Corruption Purged . | . . . . Corruption Blocked . | . . . . Effects 27 | . . 15 12 Message Errors 10 | . . 8 2 Matter Fused 6 | . . 2 4 Heat Flow Errors 4 | . . 2 2 Energy Discharges 1 | . . . 1 Parts Fused 1 | . . . 1 Data Loss (minor) 2 | . . 1 1 Misfires 3 | . . 2 1 Overload Shots . | . . . . Overflow Damage . | . . . . Projectiles . | . . . . Explosions . | . . . . Melee . | . . . . Knockbacks . | . . . . Impact . | . . . . Kinetic . | . . . . Secondary . | . . . . Self-Inflicted Damage 55 | . 55 . . Shots 1 | . 1 . . Rammed 1 | . . 1 . Targets Rammed 1 | . . 1 . Kicked . | . . . . Crushed . | . . . . Highest Temperature 218 | . 114 186 218 Average Temperature 54 | . 36 81 96 Received Heat Transfer 234 | . 36 90 108 Siege Activations . | . . . . Martial Activations . | . . . . Shielding Activations . | . . . . Robots Disrupted . | . . . . Combat Hostiles . | . . . . Robots Corrupted 1 | . 1 . . Combat Hostiles 1 | . 1 . . Parts Fried 4 | . 4 . . Impact Corruptions . | . . . . Robots Melted . | . . . . Combat Hostiles . | . . . . Parts Melted 2 | . . . 2 Heat Transferred 50 | . 50 . . Parts Sabotaged . | . . . . Parts Stolen . | . . . . Parts Stripped . | . . . . Power Chain Reactions 1 | . 1 . . Alert | -11 -10 -10 -10 ------- Run | Yrd Mat Min Sub Maximum Alert Level . | . . . . Low Security (%) 100 | 100 100 100 . Level 1 . | . . . . Level 2 . | . . . . Level 3 . | . . . . Level 4 . | . . . . Level 5 . | . . . . High Security . | . . . . Max Security . | . . . . Peak Influence 102 | . 102 33 . Initial 33 | . . 33 . Average 14 | . 32 2 . Influence Increases 295 | . 255 40 . Destroy 0b10 Robot/C 160 | . 120 40 . Destroy 0b10 Robot/NC 20 | . 20 . . Destroy Leader 34 | . 34 . . Disable Machine 30 | . 30 . . Destroy Structure 6 | . 6 . . Lose Combat Pursuer 45 | . 45 . . Influence Decreases 295 | . 170 125 . Entered New Map 52 | . . 52 . Time Decay 233 | . 170 63 . Lost Part 10 | . . 10 . Squads Dispatched 6 | . 6 . . Investigation 3 | . 3 . . Extermination . | . . . . Reinforcement 3 | . 3 . . Assault . | . . . . Garrison . | . . . . Intercept . | . . . . Searches Triggered . | . . . . Construction Impeded . | . . . . Haulers Reinforced . | . . . . Active Scanning Responses . | . . . . Cargo Convoy Interrupts . | . . . . Stealth | -11 -10 -10 -10 --------- Run | Yrd Mat Min Sub Distress Signals 1 | . 1 . . Communications Jammed . | . . . . Distress Signals . | . . . . Times Spotted 25 | . 14 2 9 Peak Tracking Total 4 | . 3 2 4 Tactical Retreats 3 | . 3 . . Traps | -11 -10 -10 -10 ------- Run | Yrd Mat Min Sub Traps Triggered 1 | . 1 . . Indirectly . | . . . . Trap Hack Attempts . | . . . . Triggered . | . . . . Disarmed . | . . . . Reprogrammed . | . . . . Reused . | . . . . Traps Extracted . | . . . . Installed 5 | . . 5 . Triggered . | . . . . Machines | -11 -10 -10 -10 ---------- Run | Yrd Mat Min Sub Machines Disabled 2 | . 2 . . Max in Single Turn 1 | . 1 . . Machines Repaired . | . . . . Machines Dismantled . | . . . . Machines Sabotaged . | . . . . Overloaded Fab Kills . | . . . . Hacking | -11 -10 -10 -10 --------- Run | Yrd Mat Min Sub Machines Accessed 1 | . 1 . . Terminals 1 | . 1 . . Fabricators . | . . . . Repair Stations . | . . . . Recycling Units . | . . . . Scanalyzers . | . . . . Garrison Access . | . . . . Total Hacks 2 | . 2 . . Successful . | . . . . Failed 2 | . 2 . . Catastrophic . | . . . . Database Lockouts . | . . . . Manual . | . . . . Terminals 2 | . 2 . . Fabricators . | . . . . Repair Stations . | . . . . Recycling Units . | . . . . Scanalyzers . | . . . . Garrison Access . | . . . . Terminal Hacks . | . . . . Fabricator Hacks . | . . . . Repair Station Hacks . | . . . . Recycling Unit Hacks . | . . . . Scanalyzer . | . . . . Garrison Access Hacks . | . . . . Unauthorized Hacks . | . . . . Terminals . | . . . . Fabricators . | . . . . Repair Stations . | . . . . Recycling Units . | . . . . Scanalyzers . | . . . . Garrison Access . | . . . . Data Cores Recovered 1 | . 1 . . Used . | . . . . Hacking Detections 1 | . 1 . . Full Trace Events 1 | . 1 . . Feedback Events . | . . . . Feedback Blocked . | . . . . Robot Schematics Acquired . | . . . . Robots Built . | . . . . Authchips . | . . . . Time . | . . . . Total Robot Build Rating . | . . . . Part Schematics Acquired . | . . . . Parts Built . | . . . . Authchips . | . . . . Time . | . . . . Total Part Build Rating . | . . . . Part Studies Acquired . | . . . . Parts Repaired . | . . . . Time . | . . . . Parts Recycled . | . . . . Recycled Matter . | . . . . Retrieved Matter . | . . . . Retrieved Components . | . . . . Parts Scanalyzed . | . . . . Part Schematics Acquired . | . . . . Parts Damaged . | . . . . Bothacking | -11 -10 -10 -10 ------------ Run | Yrd Mat Min Sub Used RIF Installer . | . . . . Robots Hacked . | . . . . Non-combat . | . . . . Combat . | . . . . Robot Hacks Applied . | . . . . Relay Couplers Released . | . . . . Fabnet Peak Effective % . | . . . . Robots Rewired . | . . . . Allies Hacked . | . . . . Hacks Repelled . | . . . . Allies | -11 -10 -10 -10 -------- Run | Yrd Mat Min Sub Total Allies . | . . . . Largest Group . | . . . . Highest-Rated Group . | . . . . Highest-Rated Ally . | . . . . Total Orders . | . . . . Ally Attacks . | . . . . Total Damage . | . . . . Kills . | . . . . Allies Corrupted . | . . . . Allies Melted . | . . . . Intel | -11 -10 -10 -10 ------- Run | Yrd Mat Min Sub Active Infowar (turns) . | . . . . Robot Analysis Total . | . . . . Derelict Logs Recovered 1 | . . . 1 Drone Launches . | . . . . Drone Recoveries . | . . . . Exploration | -11 -10 -10 -10 ------------- Run | Yrd Mat Min Sub Turns Passed 2406 | 8 622 899 877 Spaces Moved 1248 | 4 352 291 601 Core 14 | . . . 14 Treads 278 | . . 236 42 Legs . | . . . . Wheels 956 | 4 352 55 545 Hover . | . . . . Flight . | . . . . Fastest Speed 100 | 100 100 175 110 Average Speed 166 | 100 131 294 124 Slowest Speed 480 | 100 175 480 320 Overloaded Moves . | . . . . Propulsion Burnouts . | . . . . Robots Hopped . | . . . . Potential Cave-ins . | . . . . Cave-ins Triggered . | . . . . Exploration Rate (%) 34 | 2 58 52 25 Regions Visited 3 Branch Regions 2 Pre-discovered Areas 1 | . . . 1 Known Exits Taken . | . . . . Unknown Exits Taken 3 | 1 1 1 . Scrap Searched 5 | . . 1 4 Spaces Dug . | . . . . Terrain Destroyed 7 | . 6 . 1 Melee . | . . . . Projectile 1 | . . . 1 AOE 6 | . 6 . . Terrain Rammed . | . . . . Walls Destroyed . | . . . . Machines Disabled . | . . . . Actions | -11 -10 -10 -10 --------- Run | Yrd Mat Min Sub Total 1446 | 7 460 318 661 Wait 70 | . 66 3 1 Move 1245 | 3 351 290 601 Hop . | . . . . Pick Up 21 | . 6 7 8 Fast Attach 5 | . 2 1 2 Attach 5 | . . 2 3 Detach . | . . . . Swap 14 | 2 6 1 5 Drop 13 | 2 4 . 7 Fire 67 | . 25 8 34 Melee . | . . . . Ram . | . . . . Kick . | . . . . Crush 1 | . . 1 . Escape Stasis . | . . . . Rewire . | . . . . Trap 5 | . . 5 . Miscellaneous . | . . . . Route ------- -11/Scrapyard -10/Materials (discovered 2 exits: [*Mat] / [*Min]) -10/Mines (discovered 2 exits: [*Mat] / [*Sub]) -10/Subcaves History --------- Turn | Location | Event 6 | -11/Scrapyard | Discovered new exit (range 3) 9 | -11/Scrapyard | Entered Materials 313 | -10/Materials | Build established: Mutant 456 | -10/Materials | Discovered new exit (range 12) 560 | -10/Materials | Discovered new exit (range 10) 631 | -10/Materials | Entered Mines 668 | -10/Mines | Discovered new exit (range 5) 782 | -10/Mines | Lost 3 parts (1n2w) 1297 | -10/Mines | Found a hidden stash of uninstalled traps 1511 | -10/Mines | Discovered new exit (range 9) 1530 | -10/Mines | Entered Subcaves 1531 | -10/Subcaves | Approached by a straggling Scientist 1575 | -10/Subcaves | Learned location of Storage (-9) 1701 | -10/Subcaves | Core integrity fell below 50% 1765 | -10/Subcaves | Lost 5 parts (1p2n1u1w) 1844 | -10/Subcaves | A swath of the cavern ceiling suddenly collapsed 2318 | -10/Subcaves | Core integrity fell below 20% 2407 | -10/Subcaves | Destroyed by RX-1E5(R) with Subdweller Shrapnel Launcher Last Messages --------------- 02181_ System corrupted: Component data lost. 0Y-5Q7(c): "I think it's somewhere southeast of here" 0Y-5Q7(c): "I think it's somewhere south of here" 02251_ System corrupted: Matter fused (-5). 02267_ ,EYY 2/BQC7EL5